[Event "Skalica Open 2019"]
[Site "Skalica"]
[Date "2019.08.27"]
[Round "4.20"]
[White "Sefcik, Marek"]
[Black "Lhotska, Anna"]
[Result "1-0"]
[ECO "B53"]
[WhiteElo "2024"]
[BlackElo "1966"]
[Annotator "NA"]
[PlyCount "143"]
[EventDate "2019.08.25"]
[EventType "swiss"]
[EventCountry "SVK"]
[SourceTitle "playchess.com"]
[Source "ChessBase"]
[SourceQuality "1"]
[TimeControl "40/5400+30:1800+30"]

1. e4 {[%emt 0:00:00]} c5 {[%emt 0:00:00]} 2. Nf3 {[%emt 0:00:00]} d6 {[%emt 0:00:00]} 3. d4 {[%emt 0:00:00]} cxd4 {[%emt 0:00:00]} 4. Qxd4 {[%emt 0:00:00]} Nc6 {[%emt 0:00:24]} 5. Bb5 {[%emt 0:00:07]} a6 {[%emt 0:03:36]} 6. Bxc6+ {[%emt 0:00:10]} bxc6 {[%emt 0:00:06]} 7. c4 {[%emt 0:02:50]} e6 {[%emt 0:11:29]} 8. Nc3 {[%emt 0:01:12]} c5 {[%emt 0:07:36]} 9. Qd3 {[%emt 0:00:25]} Bb7 {[%emt 0:00:21]} 10. O-O {[%emt 0:02:54]} Qc7 {[%emt 0:02:55]} 11. Bf4 {[%emt 0:04:41]} Rd8 {[%emt 0:02:27]} 12. Rad1 {[%emt 0:04:28]} Be7 {[%emt 0:04:18]} 13. Rfe1 {[%emt 0:03:28]} Nf6 {[%emt 0:04:01]} 14. h3 {[%emt 0:04:21]} O-O {[%emt 0:01:47]} 15. Qe3 {[%emt 0:01:32]} Qb6 {[%emt 0:16:48]} 16. Rd2 {[%emt 0:04:23]} Rd7 {[%emt 0:06:51]} 17. Red1 {[%emt 0:08:48]} Rfd8 {[%emt 0:01:55]} 18. b3 {[%emt 0:00:57]} Qc6 {[%emt 0:09:52]} 19. Re2 {[%emt 0:04:28]} Bf8 {[%emt 0:10:43]} 20. Bg5 {[%emt 0:04:37]} Be7 {[%emt 0:01:20]} 21. Bh4 {[%emt 0:09:43]} Qc8 {[%emt 0:06:19]} 22. Rde1 {[%emt 0:06:46]} Qa8 {[%emt 0:00:37]} 23. Na4 {[%emt 0:02:23]} Rc7 {[%emt 0:01:38]} 24. Nd2 {[%emt 0:00:38]} Bc6 {[%emt 0:00:59]} 25. Nc3 {[%emt 0:00:18]} Qb7 {[%emt 0:04:08]} 26. Bg3 {[%emt 0:00:36]} Rcd7 {[%emt 0:00:24]} 27. f3 {[%emt 0:01:08]} h6 {[%emt 0:01:51]} 28. Bf2 {[%emt 0:01:19]} Nh5 {[%emt 0:00:23]} 29. f4 {[%emt 0:01:12]} Bf6 {[%emt 0:00:44]} 30. g3 {[%emt 0:02:30]} Bd4 {[%emt 0:00:53]} 31. Qd3 {[%emt 0:02:06]} Bf6 {[%emt 0:00:33]} 32. Nf1 {[%emt 0:03:06]} Bxc3 {[%emt 0:00:31]} 33. Qxc3 {[%emt 0:00:05]} Nf6 {[%emt 0:00:08]} 34. Qc2 {[%emt 0:01:19]} Rc7 {[%emt 0:00:32]} 35. Nh2 {[%emt 0:02:33]} a5 {[%emt 0:00:38]} 36. Nf3 {[%emt 0:04:33]} d5 {[%emt 0:00:39]} 37. exd5 {[%emt 0:00:31]} exd5 {[%emt 0:00:05]} 38. Ne5 {[%emt 0:00:26]} d4 {[%emt 0:00:33]} 39. Nxc6 {[%emt 0:00:19]} Qxc6 {[%emt 0:00:17]} 40. Qd3 {[%emt 0:00:28]} Rb8 {[%emt 0:01:04]} 41. g4 {[%emt 0:31:44]} Rcc8 {[%emt 0:04:55]} 42. Bh4 {[%emt 0:00:00]} Ne8 {[%emt 0:05:27]} 43. Re7 {[%emt 0:00:00]} Rc7 {[%emt 0:01:33]} 44. Qe4 {[%emt 0:00:00]} Qxe4 {[%emt 0:04:08]} 45. R1xe4 {[%emt 0:00:00]} Rcc8 {[%emt 0:02:13]} 46. Ra7 {[%emt 0:00:00]} Ra8 {[%emt 0:03:14]} 47. Ree7 {[%emt 0:00:00]} f6 {[%emt 0:00:41]} 48. Be1 {[%emt 0:00:00]} a4 {[%emt 0:00:43]} 49. bxa4 {[%emt 0:00:00]} Rxa7 {[%emt 0:00:52]} 50. Rxa7 {[%emt 0:00:00]} Nd6 {[%emt 0:01:01]} 51. a5 {[%emt 0:00:00]} Nxc4 {[%emt 0:00:23]} 52. Rd7 {[%emt 0:00:00]} Rc6 {[%emt 0:01:45]} 53. Rd5 {[%emt 0:00:00]} Ne3 {[%emt 0:02:18]} 54. Rd7 {[%emt 0:00:00]} Nc2 {[%emt 0:00:37]} 55. Bd2 {[%emt 0:01:47]} c4 {[%emt 0:00:34]} 56. Kf2 {[%emt 0:02:35]} d3 {[%emt 0:01:51]} 57. Bc3 {[%emt 0:00:39]} Re6 {[%emt 0:01:14]} 58. g5 {[%emt 0:06:03]} hxg5 {[%emt 0:03:00]} 59. fxg5 {[%emt 0:00:02]} Kf8 {[%emt 0:00:23]} 60. g6 {[%emt 0:01:09]} Re2+ {[%emt 0:01:37]} 61. Kf3 {[%emt 0:00:34]} Re3+ {[%emt 0:00:18]} 62. Kf4 {[%emt 0:01:20]} Re6 {[%emt 0:00:20]} 63. Rf7+ {[%emt 0:03:52]} Ke8 {[%emt 0:01:19]} 64. Rxg7 {[%emt 0:00:19]} Kf8 {[%emt 0:00:46]} 65. Rd7 {[%emt 0:03:21]} Re2 {[%emt 0:00:52]} 66. a6 {[%emt 0:01:13]} Rf2+ {[%emt 0:00:40]} 67. Kg3 {[%emt 0:00:34]} Re2 {[%emt 0:00:13]} 68. a7 {[%emt 0:00:24]} Re8 {[%emt 0:00:08]} 69. h4 {[%emt 0:00:23]} Ne3 {[%emt 0:00:15]} 70. Rb7 {[%emt 0:04:04]} Nd5 {[%emt 0:00:43]} 71. Rb8 {[%emt 0:00:46]} Nc7 {[%emt 0:00:08]} 72. Bb4+ 1-0

[Event "Skalica Open 2019"]
[Site "Skalica"]
[Date "2019.08.27"]
[Round "4.21"]
[White "Krakovsky, Peter"]
[Black "Petkevich, Denis"]
[Result "1/2-1/2"]
[ECO "A16"]
[WhiteElo "1000"]
[BlackElo "1863"]
[Annotator "NA"]
[PlyCount "43"]
[EventDate "2019.08.25"]
[EventType "swiss"]
[EventCountry "SVK"]
[SourceTitle "playchess.com"]
[Source "ChessBase"]
[SourceQuality "1"]
[TimeControl "40/5400+30:1800+30"]

1. c4 {[%emt 0:00:00]} Nf6 {[%emt 0:00:00]} 2. Nc3 {[%emt 0:00:00]} g6 {[%emt 0:00:10]} 3. g3 {[%emt 0:00:00]} Bg7 {[%emt 0:00:12]} 4. Bg2 {[%emt 0:00:00]} O-O {[%emt 0:00:08]} 5. Nf3 {[%emt 0:00:22]} d5 {[%emt 0:01:45]} 6. cxd5 {[%emt 0:00:39]} Nxd5 {[%emt 0:00:05]} 7. O-O {[%emt 0:00:18]} Nxc3 {[%emt 0:00:48]} 8. dxc3 {[%emt 0:00:43]} c6 {[%emt 0:06:26]} 9. Bf4 {[%emt 0:05:05]} Bg4 {[%emt 0:04:07]} 10. Qb3 {[%emt 0:02:01]} Qb6 {[%emt 0:05:14]} 11. Be3 {[%emt 0:06:50]} Qc7 {[%emt 0:01:46]} 12. Rfd1 {[%emt 0:01:44]} Nd7 {[%emt 0:01:48]} 13. h3 {[%emt 0:01:38]} Bxf3 {[%emt 0:04:23]} 14. exf3 {[%emt 0:03:01]} Rad8 {[%emt 0:07:25]} 15. f4 {[%emt 0:01:04]} Nb6 {[%emt 0:00:10]} 16. Bxb6 {[%emt 0:02:14]} axb6 {[%emt 0:00:04]} 17. Rxd8 {[%emt 0:01:45]} Rxd8 {[%emt 0:00:06]} 18. Rd1 {[%emt 0:00:10]} e5 {[%emt 0:01:09]} 19. fxe5 {[%emt 0:02:17]} Bxe5 {[%emt 0:00:20]} 20. Qc2 {[%emt 0:01:43]} b5 {[%emt 0:01:14]} 21. Rd3 {[%emt 0:00:42]} Kg7 {[%emt 0:05:00]} 22. Qd1 {[%emt 0:03:16]} 1/2-1/2

[Event "Skalica Open 2019"]
[Site "Skalica"]
[Date "2019.08.27"]
[Round "4.22"]
[White "Londin, Lukas Vojtech"]
[Black "Ivanov, Alexander"]
[Result "1/2-1/2"]
[ECO "B12"]
[WhiteElo "1415"]
[BlackElo "2473"]
[Annotator "ChessBase"]
[PlyCount "83"]
[EventDate "2019.08.25"]
[EventType "swiss"]
[EventCountry "SVK"]
[SourceTitle "playchess.com"]
[Source "ChessBase"]
[SourceQuality "1"]
[TimeControl "40/5400+30:1800+30"]

1. e4 {[%emt 0:00:00]} c6 {[%emt 0:00:00]} 2. d4 {[%emt 0:00:00]} d5 {[%emt 0:00:00]} 3. Bd3 {[%emt 0:03:03]} dxe4 {[%emt 0:00:51]} 4. Bxe4 {[%emt 0:00:07]} Nf6 {[%emt 0:00:24]} 5. Bf3 {[%emt 0:00:33]} Bf5 {[%emt 0:01:03]} 6. Ne2 {[%emt 0:00:36]} e6 {[%emt 0:01:51]} 7. Bf4 {[%emt 0:00:22]} Nbd7 {[%emt 0:04:56]} 8. c4 {[%emt 0:01:30]} Bb4+ {[%emt 0:28:07]} 9. Nbc3 {[%emt 0:01:08]} Ne4 {[%emt 0:02:07]} 10. O-O {[%emt 0:00:29]} Nd6 {[%emt 0:15:48]} 11. b3 {[%emt 0:03:46]} O-O {[%emt 0:08:04]} 12. a3 {[%emt 0:02:26]} Bxc3 {[%emt 0:00:12]} 13. Nxc3 {[%emt 0:00:05]} Nf6 {[%emt 0:01:06]} 14. Re1 {[%emt 0:00:52]} Bg6 {[%emt 0:05:09]} 15. d5 {[%emt 0:04:47]} exd5 {[%emt 0:05:45]} 16. cxd5 {[%emt 0:01:53]} c5 {[%emt 0:00:41]} 17. Rc1 {[%emt 0:03:33]} a6 {[%emt 0:02:15]} 18. Na4 {[%emt 0:06:14]} b6 {[%emt 0:01:36]} 19. b4 {[%emt 0:00:51]} cxb4 {[%emt 0:01:52]} 20. axb4 {[%emt 0:00:16]} b5 {[%emt 0:06:58]} 21. Nc5 {[%emt 0:00:49]} Re8 {[%emt 0:01:09]} 22. Qd4 {[%emt 0:09:44]} Qb6 {[%emt 0:05:39]} 23. Bxd6 {[%emt 0:06:19]} Qxd6 {[%emt 0:00:15]} 24. Nb7 {[%emt 0:00:05]} Qd7 {[%emt 0:02:11]} 25. d6 {[%emt 0:00:07]} Rxe1+ {[%emt 0:00:30]} 26. Rxe1 {[%emt 0:00:06]} Re8 {[%emt 0:00:25]} 27. Rxe8+ {[%emt 0:01:08]} Qxe8 {[%emt 0:00:39]} 28. h3 {[%emt 0:00:08]} Bf5 {[%emt 0:01:36]} 29. Nc5 {[%emt 0:01:27]} Bc8 {[%emt 0:01:14]} 30. Bg4 {[%emt 0:05:15]} Bxg4 {[%emt 0:01:33]} 31. hxg4 {[%emt 0:00:05]} Nd7 {[%emt 0:00:14]} 32. Nxd7 {[%emt 0:00:06]} Qxd7 {[%emt 0:00:08]} 33. Qb6 {[%emt 0:00:08]} Kf8 {[%emt 0:01:26]} 34. Qb8+ {[%emt 0:00:08]} Qe8 {[%emt 0:00:06]} 35. Qc7 {[%emt 0:00:12]} Qe1+ {[%emt 0:00:54]} 36. Kh2 {[%emt 0:00:07]} Qe5+ {[%emt 0:00:04]} 37. g3 {[%emt 0:00:05]} g6 {[%emt 0:00:12]} 38. Qc8+ {[%emt 0:00:11]} Kg7 {[%emt 0:00:09]} 39. d7 {[%emt 0:00:24]} Qd4 {[%emt 0:00:10]} 40. Kg1 {[%emt 0:01:20]} Qd1+ {[%emt 0:00:06]} 41. Kg2 {[%emt 0:30:13]} Qd5+ {[%emt 0:30:07]} 42. Kh2 {[%emt 0:01:14]} 1/2-1/2

[Event "Skalica Open 2019"]
[Site "Skalica"]
[Date "2019.08.27"]
[Round "4.23"]
[White "Skreko, Igor"]
[Black "Krupnova, Anna"]
[Result "1-0"]
[ECO "A22"]
[WhiteElo "1725"]
[BlackElo "1712"]
[Annotator "NA"]
[PlyCount "111"]
[EventDate "2019.08.25"]
[EventType "swiss"]
[EventCountry "SVK"]
[SourceTitle "playchess.com"]
[Source "ChessBase"]
[SourceQuality "1"]
[TimeControl "40/5400+30:1800+30"]

1. c4 {[%emt 0:00:00]} e5 {[%emt 0:00:00]} 2. Nc3 {[%emt 0:00:00]} Nf6 {[%emt 0:00:00]} 3. g3 {[%emt 0:00:00]} c6 {[%emt 0:02:14]} 4. d4 {[%emt 0:00:00]} exd4 {[%emt 0:00:16]} 5. Qxd4 {[%emt 0:00:00]} d5 {[%emt 0:00:16]} 6. Bg5 {[%emt 0:01:33]} Be7 {[%emt 0:02:16]} 7. Bg2 {[%emt 0:09:12]} Be6 {[%emt 0:02:17]} 8. cxd5 {[%emt 0:01:00]} cxd5 {[%emt 0:00:21]} 9. e3 {[%emt 0:01:48]} Nc6 {[%emt 0:00:59]} 10. Qd2 {[%emt 0:01:36]} O-O {[%emt 0:08:05]} 11. Rd1 {[%emt 0:07:15]} Qa5 {[%emt 0:16:25]} 12. Bxf6 {[%emt 0:17:21]} Bxf6 {[%emt 0:03:33]} 13. Nge2 {[%emt 0:02:15]} Rad8 {[%emt 0:09:48]} 14. Nf4 {[%emt 0:14:15]} d4 {[%emt 0:03:55]} 15. Ncd5 {[%emt 0:09:27]} Qxd2+ {[%emt 0:17:08]} 16. Rxd2 {[%emt 0:01:42]} dxe3 {[%emt 0:05:08]} 17. fxe3 {[%emt 0:00:59]} Be5 {[%emt 0:02:28]} 18. Rf1 {[%emt 0:13:13]} g5 {[%emt 0:10:24]} 19. Nxe6 {[%emt 0:01:50]} fxe6 {[%emt 0:00:24]} 20. Rxf8+ {[%emt 0:00:11]} Kxf8 {[%emt 0:01:41]} 21. Nc3 {[%emt 0:00:12]} Rxd2 {[%emt 0:08:35]} 22. Kxd2 {[%emt 0:00:09]} Ke7 {[%emt 0:00:37]} 23. b3 {[%emt 0:02:00]} Kd7 {[%emt 0:01:29]} 24. Ne4 {[%emt 0:01:51]} g4 {[%emt 0:02:26]} 25. Nc5+ {[%emt 0:00:29]} Ke7 {[%emt 0:00:40]} 26. Nxb7 {[%emt 0:00:37]} Nb4 {[%emt 0:00:25]} 27. a3 {[%emt 0:01:29]} Nd5 {[%emt 0:00:20]} 28. Bxd5 {[%emt 0:01:35]} exd5 {[%emt 0:00:07]} 29. Nc5 {[%emt 0:01:38]} Bd6 {[%emt 0:01:01]} 30. b4 {[%emt 0:00:55]} Bxc5 {[%emt 0:00:53]} 31. bxc5 {[%emt 0:00:02]} Kd7 {[%emt 0:00:13]} 32. Kc3 {[%emt 0:00:31]} a5 {[%emt 0:00:45]} 33. Kb3 {[%emt 0:02:17]} Kc6 {[%emt 0:00:07]} 34. Ka4 {[%emt 0:00:03]} Kxc5 {[%emt 0:00:12]} 35. Kxa5 {[%emt 0:00:04]} Kc4 {[%emt 0:01:15]} 36. Kb6 {[%emt 0:00:17]} Kd3 {[%emt 0:00:32]} 37. Kc5 {[%emt 0:00:17]} Kxe3 {[%emt 0:00:33]} 38. Kxd5 {[%emt 0:00:08]} Kf3 {[%emt 0:00:11]} 39. a4 {[%emt 0:00:03]} Kg2 {[%emt 0:00:11]} 40. a5 {[%emt 0:00:03]} Kxh2 {[%emt 0:00:08]} 41. a6 {[%emt 0:30:03]} Kxg3 {[%emt 0:30:11]} 42. a7 {[%emt 0:00:03]} Kh2 {[%emt 0:01:16]} 43. a8=Q {[%emt 0:00:06]} g3 {[%emt 0:00:00]} 44. Qh8 {[%emt 0:00:00]} g2 {[%emt 0:00:00]} 45. Qxh7+ {[%emt 0:00:00]} Kg3 {[%emt 0:00:00]} 46. Qg6+ {[%emt 0:00:00]} Kf2 {[%emt 0:00:00]} 47. Qf5+ {[%emt 0:00:00]} Ke2 {[%emt 0:00:00]} 48. Qg4+ {[%emt 0:00:00]} Kf2 {[%emt 0:00:00]} 49. Qf4+ {[%emt 0:00:00]} Ke2 {[%emt 0:00:00]} 50. Qg3 {[%emt 0:00:00]} Kf1 {[%emt 0:00:00]} 51. Qf3+ {[%emt 0:00:00]} Kg1 {[%emt 0:00:00]} 52. Ke4 {[%emt 0:00:00]} Kh2 {[%emt 0:00:00]} 53. Qf2 {[%emt 0:00:00]} Kh1 {[%emt 0:00:00]} 54. Qh4+ {[%emt 0:00:00]} Kg1 {[%emt 0:00:00]} 55. Kf3 {[%emt 0:00:00]} Kf1 {[%emt 0:00:00]} 56. Qf2# 1-0

[Event "Skalica Open 2019"]
[Site "Skalica"]
[Date "2019.08.27"]
[Round "4.24"]
[White "Vlcek, Antonin"]
[Black "Palka, Miroslav"]
[Result "0-1"]
[ECO "B72"]
[WhiteElo "1686"]
[BlackElo "1869"]
[Annotator "NA"]
[PlyCount "80"]
[EventDate "2019.08.25"]
[EventType "swiss"]
[EventCountry "SVK"]
[SourceTitle "playchess.com"]
[Source "ChessBase"]
[SourceQuality "1"]
[TimeControl "40/5400+30:1800+30"]

1. e4 {[%emt 0:00:00]} c5 {[%emt 0:08:36]} 2. Nf3 {[%emt 0:00:00]} d6 {[%emt 0:00:19]} 3. d4 {[%emt 0:00:08]} cxd4 {[%emt 0:00:05]} 4. Nxd4 {[%emt 0:00:10]} Nf6 {[%emt 0:00:12]} 5. Nc3 {[%emt 0:00:15]} g6 {[%emt 0:00:07]} 6. Be2 {[%emt 0:01:05]} Bg7 {[%emt 0:00:04]} 7. Be3 {[%emt 0:00:13]} O-O {[%emt 0:01:30]} 8. Qd2 {[%emt 0:00:48]} Nc6 {[%emt 0:00:16]} 9. f3 {[%emt 0:01:24]} Nxd4 {[%emt 0:00:17]} 10. Bxd4 {[%emt 0:00:20]} Be6 {[%emt 0:00:30]} 11. O-O {[%emt 0:03:40]} Qa5 {[%emt 0:00:31]} 12. Rad1 {[%emt 0:01:38]} Rfc8 {[%emt 0:00:15]} 13. a3 {[%emt 0:07:27]} Bc4 {[%emt 0:00:30]} 14. Bxc4 {[%emt 0:05:01]} Rxc4 {[%emt 0:00:11]} 15. b3 {[%emt 0:04:33]} Nxe4 {[%emt 0:01:55]} 16. Nxe4 {[%emt 0:05:15]} Qxd2 {[%emt 0:00:12]} 17. Rxd2 {[%emt 0:02:05]} Rxd4 {[%emt 0:00:05]} 18. Rfd1 {[%emt 0:02:18]} Rxd2 {[%emt 0:00:08]} 19. Rxd2 {[%emt 0:00:10]} Rc8 {[%emt 0:00:09]} 20. c4 {[%emt 0:01:30]} Bh6 {[%emt 0:02:15]} 21. Rd3 {[%emt 0:01:37]} Rc6 {[%emt 0:02:58]} 22. Kf2 {[%emt 0:03:11]} a6 {[%emt 0:01:45]} 23. a4 {[%emt 0:02:24]} Bg7 {[%emt 0:01:04]} 24. f4 {[%emt 0:01:42]} h6 {[%emt 0:00:54]} 25. g4 {[%emt 0:00:38]} f5 {[%emt 0:00:46]} 26. gxf5 {[%emt 0:00:44]} gxf5 27. Ng3 e6 {[%emt 0:04:47]} 28. Nh5 {[%emt 0:01:28]} Kf7 {[%emt 0:00:21]} 29. h4 {[%emt 0:06:47]} Bf8 {[%emt 0:00:51]} 30. Ng3 {[%emt 0:01:58]} b5 {[%emt 0:00:43]} 31. cxb5 {[%emt 0:03:32]} axb5 {[%emt 0:00:14]} 32. axb5 {[%emt 0:00:34]} Rb6 {[%emt 0:00:08]} 33. Ne2 {[%emt 0:04:17]} Rxb5 {[%emt 0:00:29]} 34. Nd4 {[%emt 0:02:39]} Rd5 {[%emt 0:02:01]} 35. Ke2 {[%emt 0:01:34]} Bg7 {[%emt 0:00:57]} 36. Nf3 {[%emt 0:00:46]} Rxd3 {[%emt 0:00:53]} 37. Kxd3 {[%emt 0:00:11]} e5 {[%emt 0:00:51]} 38. Kc4 {[%emt 0:05:20]} e4 {[%emt 0:00:26]} 39. Nd4 {[%emt 0:00:32]} Bxd4 {[%emt 0:00:25]} 40. Kxd4 {[%emt 0:00:06]} Ke6 {[%emt 0:00:25]} 0-1

[Event "Skalica Open 2019"]
[Site "Skalica"]
[Date "2019.08.28"]
[Round "5.2"]
[White "Pechac, Jergus"]
[Black "Pulpan, Jakub"]
[Result "1/2-1/2"]
[ECO "D35"]
[WhiteElo "2471"]
[BlackElo "2397"]
[Annotator "ChessBase"]
[PlyCount "95"]
[EventDate "2019.08.25"]
[EventType "swiss"]
[EventCountry "SVK"]
[SourceTitle "playchess.com"]
[Source "ChessBase"]
[SourceQuality "1"]
[TimeControl "40/5400+30:1800+30"]

1. d4 {[%emt 0:04:39]} Nf6 {[%emt 0:00:00]} 2. c4 {[%emt 0:00:10]} e6 {[%emt 0:00:12]} 3. Nc3 {[%emt 0:00:24]} d5 {[%emt 0:00:23]} 4. cxd5 {[%emt 0:00:07]} Nxd5 {[%emt 0:00:05]} 5. e4 {[%emt 0:00:12]} Nxc3 {[%emt 0:00:07]} 6. bxc3 {[%emt 0:00:08]} c5 {[%emt 0:00:10]} 7. Rb1 {[%emt 0:00:05]} Be7 {[%emt 0:00:33]} 8. Bb5+ {[%emt 0:00:05]} Nd7 {[%emt 0:02:02]} 9. a4 {[%emt 0:00:11]} O-O {[%emt 0:06:34]} 10. Nf3 {[%emt 0:00:05]} Nf6 {[%emt 0:11:17]} 11. Bd3 {[%emt 0:00:39]} b6 {[%emt 0:04:41]} 12. O-O {[%emt 0:00:09]} Bb7 {[%emt 0:00:37]} 13. Re1 {[%emt 0:00:20]} Qc7 {[%emt 0:05:49]} 14. g3 {[%emt 0:05:04]} Rad8 {[%emt 0:04:43]} 15. Qe2 {[%emt 0:04:05]} h6 {[%emt 0:11:37]} 16. Bd2 {[%emt 0:04:54]} Nd7 {[%emt 0:06:55]} 17. Rbc1 {[%emt 0:08:41]} Rfe8 {[%emt 0:02:44]} 18. h4 {[%emt 0:03:38]} Rc8 {[%emt 0:11:06]} 19. Ra1 {[%emt 0:08:06]} Bd6 {[%emt 0:06:46]} 20. Kh2 {[%emt 0:01:11]} cxd4 {[%emt 0:01:16]} 21. cxd4 {[%emt 0:01:30]} e5 {[%emt 0:00:24]} 22. d5 {[%emt 0:10:19]} Nc5 {[%emt 0:00:31]} 23. Be3 {[%emt 0:01:04]} Nxd3 {[%emt 0:05:23]} 24. Qxd3 {[%emt 0:00:03]} f5 {[%emt 0:00:12]} 25. a5 {[%emt 0:05:04]} fxe4 {[%emt 0:02:08]} 26. Qxe4 {[%emt 0:00:11]} Qf7 {[%emt 0:02:09]} 27. Red1 {[%emt 0:01:19]} b5 {[%emt 0:06:46]} 28. Bxa7 {[%emt 0:03:23]} Rc4 {[%emt 0:01:12]} 29. Qe3 {[%emt 0:00:03]} Bxd5 {[%emt 0:00:36]} 30. a6 {[%emt 0:04:42]} Bxf3 {[%emt 0:02:08]} 31. Rxd6 {[%emt 0:00:12]} Qh5 {[%emt 0:01:53]} 32. Kg1 {[%emt 0:00:22]} Rf8 {[%emt 0:00:49]} 33. Qb3 {[%emt 0:06:47]} Kh8 {[%emt 0:01:05]} 34. Rd3 {[%emt 0:00:02]} Qf5 {[%emt 0:02:44]} 35. Rxf3 {[%emt 0:00:48]} Qxf3 {[%emt 0:00:30]} 36. Qxf3 {[%emt 0:00:08]} Rxf3 {[%emt 0:00:03]} 37. Bb8 {[%emt 0:13:18]} Rcc3 {[%emt 0:00:32]} 38. Bd6 {[%emt 0:01:51]} Rc8 {[%emt 0:00:38]} 39. Bxe5 {[%emt 0:01:20]} b4 {[%emt 0:01:30]} 40. Ra4 {[%emt 0:01:28]} Ra3 {[%emt 0:00:22]} 41. Rxb4 {[%emt 0:30:23]} Rxa6 {[%emt 0:03:05]} 42. Rb7 {[%emt 0:00:00]} Rg6 {[%emt 0:00:53]} 43. Kg2 {[%emt 0:00:00]} Rc5 {[%emt 0:00:20]} 44. f4 {[%emt 0:00:00]} h5 {[%emt 0:00:18]} 45. Rf7 {[%emt 0:00:00]} Kg8 {[%emt 0:03:00]} 46. Rf5 {[%emt 0:00:00]} Rc2+ {[%emt 0:02:23]} 47. Kh3 {[%emt 0:00:00]} Re2 {[%emt 0:01:23]} 48. Rxh5 {[%emt 0:00:00]} 1/2-1/2

[Event "Skalica Open 2019"]
[Site "Skalica"]
[Date "2019.08.28"]
[Round "5.10"]
[White "Havelka, Ondrej"]
[Black "Istona, Martin"]
[Result "0-1"]
[ECO "A40"]
[WhiteElo "2112"]
[BlackElo "2235"]
[Annotator "NA"]
[PlyCount "90"]
[EventDate "2019.08.25"]
[EventType "swiss"]
[EventCountry "SVK"]
[SourceTitle "playchess.com"]
[Source "ChessBase"]
[SourceQuality "1"]
[TimeControl "40/5400+30:1800+30"]

1. d4 {[%emt 0:00:00]} g6 {[%emt 0:05:19]} 2. c4 {[%emt 0:00:00]} Bg7 {[%emt 0:00:07]} 3. Nc3 {[%emt 0:00:00]} c5 {[%emt 0:00:08]} 4. d5 {[%emt 0:00:00]} d6 {[%emt 0:00:37]} 5. e4 {[%emt 0:00:04]} Nf6 {[%emt 0:00:20]} 6. Nge2 {[%emt 0:00:53]} O-O {[%emt 0:01:41]} 7. f3 {[%emt 0:00:26]} e6 {[%emt 0:00:24]} 8. Ng3 {[%emt 0:00:24]} exd5 {[%emt 0:01:33]} 9. cxd5 {[%emt 0:00:03]} a6 {[%emt 0:00:09]} 10. a4 {[%emt 0:00:03]} h5 {[%emt 0:04:21]} 11. Be2 {[%emt 0:01:22]} h4 {[%emt 0:05:23]} 12. Nf1 {[%emt 0:00:07]} Nbd7 {[%emt 0:00:19]} 13. Bg5 {[%emt 0:00:21]} h3 {[%emt 0:02:09]} 14. g3 {[%emt 0:00:27]} Qe8 {[%emt 0:06:31]} 15. Ne3 {[%emt 0:08:28]} Nh7 {[%emt 0:10:01]} 16. Bf4 {[%emt 0:00:13]} Ne5 {[%emt 0:00:20]} 17. O-O {[%emt 0:02:21]} f5 {[%emt 0:05:10]} 18. exf5 {[%emt 0:07:37]} g5 {[%emt 0:07:50]} 19. Bxe5 {[%emt 0:04:29]} Bxe5 {[%emt 0:00:22]} 20. Ng4 {[%emt 0:01:54]} Bd4+ {[%emt 0:07:44]} 21. Kh1 {[%emt 0:00:06]} Bxf5 {[%emt 0:00:06]} 22. Nh6+ {[%emt 0:00:06]} Kg7 {[%emt 0:00:31]} 23. Nxf5+ {[%emt 0:00:01]} Rxf5 {[%emt 0:00:11]} 24. Bd3 {[%emt 0:00:20]} Re5 {[%emt 0:04:01]} 25. Qd2 {[%emt 0:06:49]} Qh5 {[%emt 0:16:07]} 26. Ne4 {[%emt 0:03:32]} Rd8 {[%emt 0:06:22]} 27. g4 {[%emt 0:01:21]} Qf7 {[%emt 0:00:20]} 28. Rae1 {[%emt 0:01:41]} Qxd5 {[%emt 0:01:24]} 29. Ng3 {[%emt 0:01:57]} Rxe1 {[%emt 0:03:19]} 30. Qxe1 {[%emt 0:00:26]} Qe5 {[%emt 0:00:12]} 31. Nf5+ {[%emt 0:01:12]} Kh8 {[%emt 0:02:53]} 32. Nxd4 {[%emt 0:00:42]} cxd4 {[%emt 0:00:20]} 33. Qb4 {[%emt 0:02:37]} Rd7 {[%emt 0:03:52]} 34. Re1 {[%emt 0:09:22]} Qf4 {[%emt 0:00:30]} 35. Be4 {[%emt 0:05:53]} Nf6 {[%emt 0:03:03]} 36. Qxd4 {[%emt 0:01:01]} d5 {[%emt 0:01:10]} 37. Qc3 {[%emt 0:03:44]} dxe4 {[%emt 0:00:35]} 38. fxe4 {[%emt 0:00:09]} Rd2 {[%emt 0:01:55]} 39. Qxh3+ {[%emt 0:01:00]} Kg7 {[%emt 0:00:10]} 40. Qg3 {[%emt 0:03:36]} Qxg3 {[%emt 0:01:07]} 41. hxg3 {[%emt 0:30:16]} Rxb2 {[%emt 0:31:03]} 42. e5 {[%emt 0:00:09]} Nxg4 {[%emt 0:00:00]} 43. Kg1 {[%emt 0:00:00]} Kf7 {[%emt 0:00:00]} 44. Re4 {[%emt 0:00:00]} Nf2 {[%emt 0:00:00]} 45. e6+ {[%emt 0:00:00]} Ke7 {[%emt 0:00:00]} 0-1